fUST/lending_fUST_20240322
["ID","MTS","AMOUNT","RATE_DAILY","PERIOD"]
[320038694,1711107032680,-500.0,0.00027296,2]
[320038696,1711107032689,-1000.0,0.00027297,2]
[320038697,1711107032827,-4344.82197574,0.00027297,2]
[320038698,1711107032838,-8665.22972028,0.00027392,2]
[320038699,1711107032848,-687.57771663,0.00027395,2]
[320038700,1711107032858,-421.20570574,0.00027395,2]
[320038701,1711107032868,-321.44480027,0.00027395,2]
[320038702,1711107032878,-178.4570254,0.00027395,2]
[320038703,1711107032887,-469.3205459,0.00027395,2]
[320038704,1711107032897,-880.21804915,0.00027395,2]
[320038705,1711107032906,-208.59318792,0.00027395,2]
[320038706,1711107032916,-384.62086758,0.00027395,2]
[320038707,1711107032926,-469.98746995,0.00027396,2]
[320038708,1711107032935,-537.68262227,0.00027396,2]
[320038709,1711107032944,-211.23797676,0.00027396,2]
[320038710,1711107032954,-500.0,0.00027396,2]
[320038711,1711107032963,-500.0,0.00027396,2]
[320038712,1711107032973,-500.0,0.00027396,2]
[320038713,1711107032983,-500.0,0.00027396,2]
[320038714,1711107032993,-437.29471742,0.00027396,2]
[320038715,1711107033002,-151.0,0.00027396,2]
[320038716,1711107033011,-151.0,0.00027396,2]
[320038717,1711107033021,-151.0,0.00027396,2]
[320038718,1711107033032,-28828.68707887,0.00027396,2]
[320038740,1711107038504,-1537.27081285,0.00027295,2]
[320038741,1711107038516,-46219.08116103,0.00027295,2]
[320038742,1711107038525,-10000.0,0.00027396,5]
[320038743,1711107038534,-500.0,0.00027397,2]
[320038744,1711107038543,-500.0,0.00027397,2]
[320038745,1711107038551,-500.0,0.00027397,2]
[320038746,1711107038561,-500.0,0.00027397,2]
[320038747,1711107038569,-500.0,0.00027397,2]
[320038748,1711107038578,-1000.0,0.00027397,2]
[320038749,1711107038588,-500.0,0.00027397,2]
[320038750,1711107038597,-1022.41,0.00027397,2]
[320038751,1711107038606,-500.0,0.00027397,2]
[320038752,1711107038616,-500.0,0.00027397,2]
[320038753,1711107038625,-500.0,0.00027397,2]
[320038754,1711107038634,-500.0,0.00027397,2]
[320038755,1711107038644,-500.0,0.00027397,2]
[320038756,1711107038653,-500.0,0.00027397,2]
[320038757,1711107038663,-384.92990209,0.00027397,2]
[320038758,1711107038672,-500.0,0.00027397,2]
[320038759,1711107038685,-500.0,0.00027397,2]
[320038760,1711107038695,-747.76,0.00027397,2]
[320038761,1711107038705,-500.0,0.00027397,2]
[320038762,1711107038714,-361.28634868,0.00027397,2]
[320038763,1711107038723,-501.9153094,0.00027397,2]
[320038764,1711107038732,-500.0,0.00027397,2]
[320038765,1711107038741,-500.0,0.00027397,2]
[320038766,1711107038750,-500.0,0.00027397,2]
[320038767,1711107038759,-500.0,0.00027397,2]
[320038768,1711107038768,-501.88964621,0.00027397,2]
[320038769,1711107038778,-500.0,0.00027397,2]
[320038770,1711107038787,-1419.85,0.00027397,2]
[320038771,1711107038797,-500.0,0.00027397,2]
[320038772,1711107038806,-500.0,0.00027397,2]
[320038773,1711107038815,-500.0,0.00027397,2]
[320038774,1711107038824,-500.0,0.00027397,2]
[320038775,1711107038834,-500.0,0.00027397,2]
[320038776,1711107038843,-500.0,0.00027397,2]
[320038777,1711107038853,-500.0,0.00027397,2]
[320038778,1711107038862,-500.0,0.00027397,2]
[320038779,1711107038873,-160.62469001,0.00027397,2]
[320038780,1711107038882,-500.0,0.00027397,2]
[320038781,1711107038892,-500.0,0.00027397,2]
[320038782,1711107038901,-513.00091062,0.00027397,2]
[320038783,1711107038911,-500.0,0.00027397,2]
[320038784,1711107038921,-500.0,0.00027397,2]
[320038785,1711107038934,-500.0,0.00027397,2]
[320038786,1711107038944,-894.58,0.00027397,2]
[320038787,1711107038953,-500.0,0.00027397,2]
[320038788,1711107038962,-500.0,0.00027397,2]
[320038789,1711107038971,-500.0,0.00027397,2]
[320038790,1711107038980,-500.0,0.00027397,2]
[320038791,1711107038990,-641.99,0.00027397,2]
[320038792,1711107038998,-500.0,0.00027397,2]
[320038793,1711107039009,-500.0,0.00027397,30]
[320038794,1711107039019,-500.0,0.00027397,2]
[320038795,1711107039028,-500.0,0.00027397,2]
[320038796,1711107039037,-500.0,0.00027397,2]
[320038797,1711107039046,-500.0,0.00027397,2]
[320038798,1711107039056,-500.0,0.00027397,2]
[320038799,1711107039067,-500.0,0.00027397,2]
[320038800,1711107039077,-500.0,0.00027397,2]
[320038801,1711107039086,-500.0,0.00027397,2]
[320038802,1711107039096,-500.0,0.00027397,2]
[320038803,1711107039106,-465.7450105,0.00027397,2]
[320038804,1711107039115,-500.0,0.00027397,2]
[320038805,1711107039124,-558.0,0.00027397,2]
[320038806,1711107039133,-500.0,0.00027397,2]
[320038807,1711107039144,-500.0,0.00027397,2]
[320038808,1711107039155,-500.0,0.00027397,2]
[320038809,1711107039164,-500.0,0.00027397,2]
[320038810,1711107039177,-500.0,0.00027397,2]
[320038811,1711107039187,-179.64739266,0.00027397,2]
[320038812,1711107039197,-500.0,0.00027397,2]
[320038813,1711107039206,-500.0,0.00027397,2]
[320038814,1711107039215,-500.0,0.00027397,2]
[320038815,1711107039225,-500.0,0.00027397,2]
[320038816,1711107039234,-535.94,0.00027397,2]
[320038817,1711107039244,-500.0,0.00027397,2]
[320038818,1711107039253,-500.0,0.00027397,2]
[320038819,1711107039262,-500.0,0.00027397,2]
[320038820,1711107039271,-994.3,0.00027397,2]
[320038821,1711107039280,-3168.98,0.00027397,2]
[320038822,1711107039290,-500.0,0.00027397,2]
[320038823,1711107039299,-500.0,0.00027397,2]
[320038824,1711107039308,-500.0,0.00027397,2]
[320038825,1711107039317,-500.0,0.00027397,2]
[320038826,1711107039326,-500.0,0.00027397,2]
[320038827,1711107039335,-503.65348306,0.00027397,2]
[320038828,1711107039344,-713.2,0.00027397,2]
[320038829,1711107039354,-502.58729336,0.00027397,2]
[320038830,1711107039363,-554.22295355,0.00027397,2]
[320038831,1711107039372,-500.0,0.00027397,2]
[320038832,1711107039381,-501.41885224,0.00027397,2]
[320038833,1711107039390,-500.0,0.00027397,2]
[320038834,1711107039399,-3610.06,0.00027397,2]
[320038835,1711107039409,-500.0,0.00027397,2]
[320038836,1711107039419,-500.0,0.00027397,2]
[320038837,1711107039430,-619.77,0.00027397,2]
[320038838,1711107039440,-500.0,0.00027397,2]
[320038839,1711107039449,-500.0,0.00027397,2]
[320038840,1711107039458,-500.0,0.00027397,2]
[320038841,1711107039468,-500.0,0.00027397,2]
[320038842,1711107039477,-500.0,0.00027397,2]
[320038843,1711107039488,-1233.97,0.00027397,2]
[320038844,1711107039497,-682.39,0.00027397,2]
[320038845,1711107039506,-562.76,0.00027397,2]
[320038846,1711107039516,-626.24,0.00027397,2]
[320038847,1711107039525,-280.28901562,0.00027397,2]
[320038848,1711107039658,-500.0,0.00027397,2]
[320038849,1711107039668,-533.76,0.00027397,2]
[320038850,1711107039680,-500.0,0.00027397,2]
[320038851,1711107039689,-500.0,0.00027397,2]
[320038852,1711107039699,-500.0,0.00027397,2]
[320038853,1711107039709,-151.0,0.00027397,2]
[320038854,1711107039719,-500.0,0.00027397,2]
[320038855,1711107039728,-500.0,0.00027397,2]
[320038856,1711107039737,-500.0,0.00027397,2]
[320038857,1711107039746,-500.0,0.00027397,2]
[320038858,1711107039755,-500.0,0.00027397,2]
[320038860,1711107039765,-500.0,0.00027397,2]
[320038862,1711107039774,-579.09,0.00027397,2]
[320038864,1711107039783,-500.0,0.00027397,2]
[320038865,1711107039792,-645.02,0.00027397,2]
[320038866,1711107039801,-500.0,0.00027397,2]
[320038867,1711107039811,-504.1,0.00027397,2]
[320038868,1711107039820,-500.0,0.00027397,2]
[320038869,1711107039829,-500.0,0.00027397,2]
[320038870,1711107039838,-500.0,0.00027397,2]
[320038871,1711107039847,-994.15,0.00027397,2]
[320038872,1711107039856,-1547.7,0.00027397,2]
[320038873,1711107039866,-1547.7,0.00027397,2]
[320038874,1711107039876,-500.0,0.00027397,2]
[320038875,1711107039886,-304.78224965,0.00027397,2]
[320038928,1711107048931,-4704.74879012,0.00025416,2]
[320038929,1711107048944,-307.39444955,0.00027395,2]
[320038930,1711107048954,-1242.91775035,0.00027397,2]
[320038931,1711107048963,-1547.7,0.00027397,2]
[320038932,1711107048974,-1547.7,0.00027397,2]
[320038934,1711107048986,-1547.7,0.00027397,2]
[320038935,1711107048996,-1547.7,0.00027397,2]
[320038936,1711107049015,-1547.7,0.00027397,2]
[320038937,1711107049025,-1547.7,0.00027397,2]
[320038938,1711107049034,-1547.7,0.00027397,2]
[320038939,1711107049043,-1547.7,0.00027397,2]
[320038940,1711107049053,-1547.7,0.00027397,2]
[320038941,1711107049064,-1547.7,0.00027397,2]
[320038942,1711107049076,-505.45289468,0.00027397,2]
[320038943,1711107049085,-1547.7,0.00027397,2]
[320038944,1711107049095,-1547.7,0.00027397,2]
[320038945,1711107049104,-1221.52809105,0.00027397,2]
[320038946,1711107049117,-326.17190895,0.00027397,2]
[320038947,1711107049127,-1547.7,0.00027397,2]
[320038948,1711107049138,-151.0,0.00027397,2]
[320038949,1711107049149,-151.0,0.00027397,2]
[320038950,1711107049168,-151.0,0.00027397,2]
[320038951,1711107049180,-151.0,0.00027397,2]
[320038952,1711107049190,-151.0,0.00027397,2]
[320038953,1711107049200,-151.0,0.00027397,2]
[320038954,1711107049209,-151.0,0.00027397,2]
[320038955,1711107049219,-151.0,0.00027397,2]
[320038956,1711107049228,-500.0,0.00027397,2]
[320038957,1711107049237,-151.0,0.00027397,2]
[320038958,1711107049246,-151.0,0.00027397,2]
[320038959,1711107049256,-269.417562,0.00027397,2]
[320038960,1711107049265,-637.72,0.00027397,2]
[320038961,1711107049274,-500.0,0.00027397,2]
[320038962,1711107049283,-2884.53,0.00027397,2]
[320038963,1711107049293,-627.72876137,0.00027397,2]
[320038964,1711107049363,-20.57123863,0.00027397,2]
[320038965,1711107049373,-252.29184174,0.00027397,2]
[320038966,1711107049382,-531.83722026,0.00027397,2]
[320038967,1711107049392,-500.0,0.00027397,2]
[320038968,1711107049401,-2053.64,0.00027397,2]
[320038969,1711107049410,-500.0,0.00027397,2]
[320038970,1711107049419,-500.0,0.00027397,2]
[320038971,1711107049429,-483.90442468,0.00027397,2]
[320038972,1711107049438,-500.0,0.00027397,2]
[320038973,1711107049449,-500.0,0.00027397,2]
[320038974,1711107049460,-500.0,0.00027397,2]
[320038975,1711107049469,-500.0,0.00027397,2]
[320038976,1711107049478,-500.0,0.00027397,2]
[320038977,1711107049488,-500.0,0.00027397,2]
[320038978,1711107049497,-500.0,0.00027397,2]
[320038979,1711107049506,-571.76226039,0.00027397,2]
[320038980,1711107049515,-500.0,0.00027397,2]
[320038981,1711107049524,-500.0,0.00027397,2]
[320038982,1711107049534,-500.0,0.00027397,2]
[320038983,1711107049543,-500.0,0.00027397,2]
[320038984,1711107049553,-500.0,0.00027397,2]
[320038985,1711107049563,-500.0,0.00027397,2]
[320038986,1711107049573,-500.85560408,0.00027397,2]
[320038987,1711107049582,-154.86062544,0.00027397,2]
[320038988,1711107049591,-500.0,0.00027397,2]
[320038989,1711107049601,-500.0,0.00027397,2]
[320038990,1711107049610,-500.0,0.00027397,2]
[320038991,1711107049619,-500.0,0.00027397,2]
[320038992,1711107049630,-500.0,0.00027397,2]
[320038993,1711107049640,-905.47,0.00027397,2]
[320038994,1711107049650,-3246.9,0.00027397,2]
[320038995,1711107049659,-745.82,0.00027397,2]
[320038996,1711107049668,-17626.89,0.00027397,2]
[320038997,1711107049677,-500.0,0.00027397,2]
[320038998,1711107049687,-151.0,0.00027397,2]
[320038999,1711107049698,-356.83331018,0.00027397,2]
[320039000,1711107049708,-151.0,0.00027397,2]
[320039001,1711107049717,-151.0,0.00027397,2]
[320039002,1711107049726,-151.0,0.00027397,2]
[320039003,1711107049736,-151.0,0.00027397,2]
[320039004,1711107049745,-151.0,0.00027397,2]
[320039005,1711107049754,-151.0,0.00027397,2]
[320039006,1711107049763,-195.065922,0.00027397,2]
[320039007,1711107049772,-613.62,0.00027397,2]
[320039008,1711107049781,-301.59496105,0.00027397,2]
[320039009,1711107049790,-500.0,0.00027397,2]
[320039010,1711107049799,-957.91,0.00027397,2]
[320039011,1711107049809,-3003.13,0.00027397,2]
[320039012,1711107049817,-2218.85,0.00027397,2]
[320039013,1711107049827,-500.0,0.00027397,2]
[320039014,1711107049836,-500.0,0.00027397,2]
[320039015,1711107049846,-500.0,0.00027397,2]
[320039016,1711107049855,-5324.56,0.00027397,2]
[320039017,1711107049864,-233.55785258,0.00027397,2]
[320039018,1711107049873,-2558.69,0.00027397,2]
[320039019,1711107049882,-639.47,0.00027397,2]
[320039020,1711107049891,-744.02,0.00027397,2]
[320039021,1711107049900,-2938.29,0.00027397,2]
[320039022,1711107049910,-500.0,0.00027397,2]
[320039023,1711107049919,-500.0,0.00027397,2]
[320039024,1711107050041,-500.0,0.00027397,2]
[320039025,1711107050051,-500.98473136,0.00027397,2]
[320039026,1711107050061,-540.32,0.00027397,2]
[320039027,1711107050070,-1440.82,0.00027397,2]
[320039028,1711107050084,-975.09,0.00027397,2]
[320039029,1711107050094,-404.05981163,0.00027397,2]
[320039030,1711107050103,-500.0,0.00027397,2]
[320039031,1711107050113,-500.0,0.00027397,2]
[320039032,1711107050122,-270.72247596,0.00027397,2]
[320039033,1711107050132,-8395.99,0.00027397,2]
[320039034,1711107050141,-499.3739216,0.00027397,2]
[320039035,1711107050151,-504.81976496,0.00027397,2]
[320039036,1711107050161,-500.0,0.00027397,2]
[320039037,1711107050173,-500.0,0.00027397,2]
[320039038,1711107050182,-1862.27,0.00027397,2]
[320039039,1711107050194,-578.86,0.00027397,2]
[320039040,1711107050203,-500.0,0.00027397,2]
[320039041,1711107050212,-1019.22,0.00027397,2]
[320039042,1711107050222,-1511.42,0.00027397,2]
[320039043,1711107050231,-500.0,0.00027397,2]
[320039044,1711107050241,-256.43021072,0.00027397,2]
[320039045,1711107050250,-500.0,0.00027397,2]
[320039046,1711107050260,-29400.12,0.00027397,2]
[320039047,1711107050269,-8177.42,0.00027397,2]
[320039048,1711107050278,-500.0,0.00027397,2]
[320039049,1711107050288,-500.25210902,0.00027397,2]
[320039050,1711107050297,-504.49874894,0.00027397,2]
[320039051,1711107050307,-2459.75,0.00027397,2]
[320039052,1711107050317,-500.0,0.00027397,2]
[320039053,1711107050326,-2560.18296478,0.00027397,2]
[320039058,1711107919420,2893.55932875,0.00024941,120]
[320039060,1711108051176,-322.61827325,0.00022048,2]
[320039061,1711108051197,-74.55215562,0.00022048,2]
[320039062,1711108153156,-154.84515485,0.00022042,2]
[320039063,1711108153177,-160.75398886,0.00022043,2]
[320039064,1711108153199,-603.12853459,0.00022044,2]
[320039065,1711108153220,-304.8751182,0.00022049,2]
[320039066,1711108153241,-3506.11948002,0.00022049,2]
[320039067,1711108153262,-2648.0923512,0.0002205,2]
[320039068,1711108153285,-665.168848,0.00022106,2]
[320039069,1711108153306,-170.78028958,0.00022518,2]
[320039070,1711108153327,-330.14171701,0.0002252,2]
[320039071,1711108153351,-47756.35197388,0.00022618,2]
[320039072,1711108153378,-500.0,0.00022618,2]
[320039073,1711108153400,-500.0,0.00022618,2]
[320039074,1711108153429,-445.28611643,0.00022618,2]
[320039075,1711108153455,-478.21408371,0.00022618,2]
[320039076,1711108153478,-224.72607743,0.00022618,2]
[320039077,1711108153501,-256.55426624,0.00022618,2]
[320039078,1711108213467,1169.15144315,0.00020518,2]
[320039300,1711108238588,-160.68166387,0.00022617,2]
[320039301,1711108238599,-315.68645979,0.00022617,2]
[320039303,1711108238616,-182.03900586,0.00022617,2]
[320039304,1711108238627,-177.28802726,0.00022617,2]
[320039305,1711108238638,-3506.11948002,0.00022617,2]
[320039307,1711108238649,-46950.21628139,0.00022618,2]
[320039309,1711108238662,-806.13569249,0.00022618,2]
[320039311,1711108238674,-54.04262408,0.00022618,2]
[320039312,1711108238686,-166.3935119,0.00022618,2]
[320039314,1711108238698,-155.08976264,0.00022618,2]
[320039315,1711108238712,-691.0566716,0.00022619,2]
[320039316,1711108238723,-10462.66807214,0.00022619,2]
[320039317,1711108238738,-1044.49043867,0.00022619,2]
[320039364,1711108239279,-1999.1581816,0.00022619,2]
[320039406,1711108243274,-4539.43,0.00022619,2]
[320039419,1711108243438,-6854.25330759,0.00022619,2]
[320039420,1711108243451,-250.0,0.0002262,2]
[320039421,1711108243461,-1142.419117,0.00022621,2]
[320039422,1711108243471,-171.275408,0.00023556,2]
[320039423,1711108243482,-163.23002213,0.00023602,2]
[320039424,1711108243491,-330.14171699,0.00023714,2]
[320039425,1711108243501,-200.99321263,0.00023719,2]
[320039426,1711108243510,-2040.67598641,0.00024564,2]
[320039427,1711108243519,-330.14171699,0.00024909,2]
[320039428,1711108243529,-182.9128405,0.0002497,2]
[320039429,1711108243538,-150.0,0.000255,30]
[320039430,1711108243547,-1169.15144315,0.00025518,2]
[320039431,1711108243556,-1043.75206081,0.0002582,2]
[320039433,1711108243567,-150.83408251,0.00025922,2]
[320039434,1711108243576,-677.04854745,0.00026,2]
[320039436,1711108243585,-330.14171699,0.00026103,2]
[320039437,1711108243595,-255.44932696,0.00026347,2]
[320039439,1711108243606,-412.62630958,0.00026347,2]
[320039441,1711108243617,-187.16195834,0.00026347,2]
[320039443,1711108243628,-784.17862143,0.00026348,2]
[320039445,1711108243638,-333.24558535,0.00026348,2]
[320039447,1711108243649,-302.25617655,0.00026348,2]
[320039449,1711108243659,-208.73581983,0.00026348,2]
[320039451,1711108243669,-2002.31207968,0.00026348,2]
[320039453,1711108243680,-837.71555244,0.0002635,2]
[320039455,1711108243690,-154.84515485,0.00026393,2]
[320039457,1711108243705,-153.0,0.00026778,2]
[320039459,1711108243718,-500.0,0.00026899,2]
[320039461,1711108243730,-195.64602515,0.00027,2]
[320039463,1711108243741,-2000.0,0.00027,2]
[320039465,1711108243752,-315.1148457,0.00027,3]
[320039467,1711108243762,-1000.0,0.00027,27]
[320039469,1711108243772,-1021.35,0.00027,2]
[320039471,1711108243782,-400.6533613,0.00027078,2]
[320039473,1711108243793,-229.97135585,0.0002712,4]
[320039475,1711108243804,-8609.82211476,0.00027297,2]
[320039477,1711108243814,-330.14171699,0.00027297,2]
[320039479,1711108243830,-232.60756961,0.00027394,2]
[320039481,1711108243841,-472.1801886,0.00027394,2]
[320039483,1711108243852,-230.64613501,0.00027394,2]
[320039485,1711108243863,-685.47138469,0.00027394,2]
[320039487,1711108243874,-965.85369178,0.00027394,2]
[320039489,1711108243886,-161.02102339,0.00027394,2]
[320039491,1711108243897,-633.09151644,0.00027394,2]
[320039493,1711108243908,-187.5384845,0.00027394,2]
[320039495,1711108243918,-154.94804904,0.00027394,2]
[320039498,1711108243938,-211.04247609,0.00027394,2]
[320039500,1711108243950,-942.6694196,0.00027394,2]
[320039502,1711108243965,-616.84182065,0.00027394,2]
[320039504,1711108243976,-575.5868675,0.00027394,2]
[320039506,1711108243987,-979.50434485,0.00027394,2]
[320039508,1711108243997,-1537.480344,0.00027395,2]
[320039510,1711108244007,-181.36506606,0.00027396,2]
[320039512,1711108244016,-35686.76182032,0.00027397,3]
[320039514,1711108244026,-500.0,0.00027397,2]
[320039516,1711108244038,-261.10942718,0.00027397,2]
[320039518,1711108244048,-500.0,0.00027397,2]
[320039520,1711108244060,-500.0,0.00027397,2]
[320039522,1711108244070,-220.48278552,0.00027397,2]
[320039524,1711108244080,-500.0,0.00027397,2]
[320039526,1711108244090,-683.49,0.00027397,2]
[320039528,1711108244101,-366.86501555,0.00027397,2]
[320039530,1711108244111,-500.0,0.00027397,2]
[320039532,1711108244120,-500.0,0.00027397,2]
[320039534,1711108244130,-500.0,0.00027397,2]
[320039536,1711108244140,-500.0,0.00027397,2]
[320039538,1711108244150,-16082.12233041,0.00027397,2]
[320039540,1711108244160,-500.0,0.00027397,2]
[320039542,1711108244170,-593.95,0.00027397,2]
[320039543,1711108244180,-500.0,0.00027397,2]
[320039545,1711108244190,-539.31,0.00027397,2]
[320039548,1711108244207,-500.0,0.00027397,2]
[320039550,1711108244217,-500.0,0.00027397,2]
[320039552,1711108244227,-500.0,0.00027397,2]
[320039554,1711108244236,-151.0,0.00027397,2]
[320039556,1711108244246,-500.0,0.00027397,2]
[320039558,1711108244256,-500.0,0.00027397,2]
[320039560,1711108244264,-500.0,0.00027397,2]
[320039562,1711108244274,-500.0,0.00027397,2]
[320039564,1711108244286,-500.0,0.00027397,2]
[320039566,1711108244295,-500.0,0.00027397,2]
[320039568,1711108244305,-500.0,0.00027397,2]
[320039569,1711108244314,-500.0,0.00027397,2]
[320039571,1711108244324,-500.0,0.00027397,2]
[320039574,1711108244333,-500.47128142,0.00027397,2]
[320039575,1711108244343,-500.0,0.00027397,2]
[320039576,1711108244353,-500.0,0.00027397,2]
[320039578,1711108244363,-504.25583823,0.00027397,2]
[320039579,1711108244373,-500.0,0.00027397,2]
[320039580,1711108244383,-258.06180717,0.00027397,2]
[320039582,1711108244392,-500.0,0.00027397,2]
[320039584,1711108244402,-500.0,0.00027397,2]
[320039586,1711108244417,-500.0,0.00027397,2]
[320039587,1711108244428,-500.0,0.00027397,2]
[320039588,1711108244438,-1182.56,0.00027397,2]
[320039590,1711108244449,-653.96,0.00027397,2]
[320039592,1711108244465,-500.0,0.00027397,2]
[320039593,1711108244474,-3459.64,0.00027397,2]
[320039595,1711108244485,-588.05,0.00027397,2]
[320039596,1711108244498,-500.0,0.00027397,2]
[320039597,1711108244509,-500.0,0.00027397,2]
[320039598,1711108244519,-500.54013591,0.00027397,2]
[320039599,1711108244530,-500.0,0.00027397,2]
[320039600,1711108244540,-918.0,0.00027397,2]
[320039601,1711108244550,-500.0,0.00027397,2]
[320039602,1711108244560,-500.0,0.00027397,2]
[320039603,1711108244570,-714.75,0.00027397,2]
[320039604,1711108244579,-600.15,0.00027397,2]
[320039605,1711108244589,-500.0,0.00027397,2]
[320039606,1711108244598,-500.0,0.00027397,2]
[320039607,1711108244607,-500.0,0.00027397,2]
[320039608,1711108244616,-500.0,0.00027397,2]
[320039609,1711108244625,-572.57364417,0.00027397,2]
[320039610,1711108244634,-644.93,0.00027397,2]
[320039611,1711108244645,-525.05060128,0.00027397,2]
[320039612,1711108244654,-500.0,0.00027397,2]
[320039613,1711108244664,-2183.47,0.00027397,2]
[320039614,1711108244673,-500.0,0.00027397,2]
[320039615,1711108244683,-554.96,0.00027397,2]
[320039616,1711108244692,-500.0,0.00027397,2]
[320039617,1711108244705,-500.0,0.00027397,2]
[320039618,1711108244714,-500.0,0.00027397,2]
[320039619,1711108244724,-500.0,0.00027397,2]
[320039620,1711108244733,-500.0,0.00027397,2]
[320039621,1711108244743,-500.0,0.00027397,2]
[320039622,1711108244752,-500.0,0.00027397,2]
[320039623,1711108244761,-500.0,0.00027397,2]
[320039624,1711108244770,-500.0,0.00027397,2]
[320039625,1711108244780,-500.0,0.00027397,2]
[320039626,1711108244789,-500.0,0.00027397,2]
[320039627,1711108244798,-500.0,0.00027397,2]
[320039628,1711108244808,-500.0,0.00027397,2]
[320039629,1711108244817,-500.0,0.00027397,2]
[320039630,1711108244826,-500.0,0.00027397,2]
[320039631,1711108244835,-500.0,0.00027397,2]
[320039632,1711108244844,-500.0,0.00027397,2]
[320039633,1711108244854,-500.0,0.00027397,2]
[320039634,1711108244863,-500.0,0.00027397,2]
[320039635,1711108244872,-500.0,0.00027397,2]
[320039636,1711108244882,-500.0,0.00027397,2]
[320039637,1711108244891,-500.0,0.00027397,2]
[320039638,1711108244901,-952.73,0.00027397,2]
[320039639,1711108244910,-283.83150974,0.00027397,2]
[320039640,1711108244920,-611.15,0.00027397,2]
[320039641,1711108244929,-500.0,0.00027397,2]
[320039642,1711108244938,-575.87,0.00027397,2]
[320039643,1711108244948,-2764.34,0.00027397,2]
[320039644,1711108244963,-500.0,0.00027397,2]
[320039645,1711108244973,-1000.0,0.00027397,2]
[320039646,1711108244982,-1968.07,0.00027397,2]
[320039647,1711108244991,-505.10339815,0.00027397,2]
[320039648,1711108245003,-500.0,0.00027397,2]
[320039649,1711108245015,-500.0,0.00027397,2]
[320039650,1711108245024,-500.0,0.00027397,2]
[320039651,1711108245034,-502.99723665,0.00027397,2]
[320039652,1711108245043,-526.04,0.00027397,2]
[320039653,1711108245052,-621.28,0.00027397,2]
[320039654,1711108245062,-500.0,0.00027397,2]
[320039655,1711108245071,-500.0,0.00027397,2]
[320039656,1711108245080,-500.0,0.00027397,2]
[320039657,1711108245089,-500.0,0.00027397,2]
[320039658,1711108245099,-500.0,0.00027397,2]
[320039659,1711108245108,-500.0,0.00027397,2]
[320039660,1711108245117,-500.0,0.00027397,2]
[320039661,1711108245127,-500.0,0.00027397,2]
[320039662,1711108245136,-575.97,0.00027397,2]
[320039663,1711108245145,-502.2482328,0.00027397,2]
[320039664,1711108245155,-500.0,0.00027397,2]
[320039665,1711108245165,-500.0,0.00027397,2]
[320039666,1711108245174,-500.0,0.00027397,2]
[320039667,1711108245183,-500.0,0.00027397,2]
[320039668,1711108245194,-500.0,0.00027397,2]
[320039669,1711108245207,-500.0,0.00027397,2]
[320039670,1711108245215,-979.81,0.00027397,2]
[320039671,1711108245225,-500.0,0.00027397,2]
[320039672,1711108245234,-549.32089256,0.00027397,2]
[320039673,1711108245243,-500.0,0.00027397,2]
[320039674,1711108245253,-500.0,0.00027397,2]
[320039675,1711108245262,-3111.61,0.00027397,2]
[320039676,1711108245271,-500.0,0.00027397,2]
[320039677,1711108245281,-9382.27,0.00027397,2]
[320039678,1711108245291,-4889.72,0.00027397,2]
[320039679,1711108245302,-500.0,0.00027397,2]